Workbook

Sheet 分数跟踪器
B1: 在此处输入您的分数
C3: 课程 | D3: 类型 | E3: 描述 | F3: 分数
C4: 现代法语 | D4: 家庭作业 | E4: 二战历史 | F4: 80%
C5: 高级 Java 编程 | D5: 期中考试 | F5: 75%
C6: 西班牙语 | D6: 家庭作业 | F6: 50%
C7: 理论物理 | D7: 家庭作业 | F7: 95%
C8: 现代法语 | D8: 家庭作业 | E8: 一战历史 | F8: 90%
C9: 现代法语 | D9: 家庭作业 | E9: 第 30 至 41 页 | F9: 80%
C10: 作文 | D10: 论文 | E10: 论文 | F10: 95%
C11: 数学 1 | D11: 家庭作业 | E11: 第 21 和第 26 页 | F11: 80%
C12: 数学 2 | D12: 家庭作业 | E12: 第 15 和第 18 页 | F12: 85%
C13: 数学 1 | D13: 家庭作业 | E13: 第 34 至 36 页 | F13: 80%
C14: 数学 2 | D14: 测验 | F14: 95%

Sheet 您的表现
B1: 您的表现
C3: 总计
C4: ="小时: "&SUM(tbl_课程[学时]) -> 小时: 24 | D4: =AVERAGE(D7:D31) -> 81% | E4: =AVERAGE(E7:E31) -> 2.71 | F4: =SUM(F7:F31) -> 2.63 | G4: =IFERROR(HLOOKUP(D4,lstGPAMapping,2),"") -> B-
C6: 课程 | D6: 百分比 | E6: GPA | F6: wGPA | G6: 字母 | H6: 整体表现
C7: =计算!C6 -> 现代法语 | D7: =计算!AL6 -> 83% | E7: =计算!AM6 -> 3.00 | F7: =IFERROR(E7*设置!D9/SUM(tbl_课程[学时]),"") -> 0.38 | G7: =计算!AN6 -> B
C8: =计算!C7 -> 理论物理 | D8: =计算!AL7 -> 95% | E8: =计算!AM7 -> 4.00 | F8: =IFERROR(E8*设置!D10/SUM(tbl_课程[学时]),"") -> 0.50 | G8: =计算!AN7 -> A
C9: =计算!C8 -> 数学 1 | D9: =计算!AL8 -> 80% | E9: =计算!AM8 -> 2.67 | F9: =IFERROR(E9*设置!D11/SUM(tbl_课程[学时]),"") -> 0.45 | G9: =计算!AN8 -> B-
C10: =计算!C9 -> 数学 2 | D10: =计算!AL9 -> 89% | E10: =计算!AM9 -> 3.33 | F10: =IFERROR(E10*设置!D12/SUM(tbl_课程[学时]),"") -> 0.56 | G10: =计算!AN9 -> B+
C11: =计算!C10 -> 高级 Java 编程 | D11: =计算!AL10 -> 75% | E11: =计算!AM10 -> 2.00 | F11: =IFERROR(E11*设置!D13/SUM(tbl_课程[学时]),"") -> 0.42 | G11: =计算!AN10 -> C
C12: =计算!C11 -> 西班牙语 | D12: =计算!AL11 -> 50% | E12: =计算!AM11 -> 0.00 | F12: =IFERROR(E12*设置!D14/SUM(tbl_课程[学时]),"") -> 0.00 | G12: =计算!AN11 -> F
C13: =计算!C12 -> 作文 | D13: =计算!AL12 -> 95% | E13: =计算!AM12 -> 4.00 | F13: =IFERROR(E13*设置!D15/SUM(tbl_课程[学时]),"") -> 0.33 | G13: =计算!AN12 -> A
C14: =计算!C13 ->  | D14: =计算!AL13 ->  | E14: =计算!AM13 ->  | F14: =IFERROR(E14*设置!D16/SUM(tbl_课程[学时]),"") ->  | G14: =计算!AN13 -> 
C15: =计算!C14 ->  | D15: =计算!AL14 ->  | E15: =计算!AM14 ->  | F15: =IFERROR(E15*设置!D17/SUM(tbl_课程[学时]),"") ->  | G15: =计算!AN14 -> 
C16: =计算!C15 ->  | D16: =计算!AL15 ->  | E16: =计算!AM15 ->  | F16: =IFERROR(E16*设置!D18/SUM(tbl_课程[学时]),"") ->  | G16: =计算!AN15 -> 
C17: =计算!C16 ->  | D17: =计算!AL16 ->  | E17: =计算!AM16 ->  | F17: =IFERROR(E17*设置!D19/SUM(tbl_课程[学时]),"") ->  | G17: =计算!AN16 -> 
C18: =计算!C17 ->  | D18: =计算!AL17 ->  | E18: =计算!AM17 ->  | F18: =IFERROR(E18*设置!D20/SUM(tbl_课程[学时]),"") ->  | G18: =计算!AN17 -> 
C19: =计算!C18 ->  | D19: =计算!AL18 ->  | E19: =计算!AM18 ->  | F19: =IFERROR(E19*设置!D21/SUM(tbl_课程[学时]),"") ->  | G19: =计算!AN18 -> 
C20: =计算!C19 ->  | D20: =计算!AL19 ->  | E20: =计算!AM19 ->  | F20: =IFERROR(E20*设置!D22/SUM(tbl_课程[学时]),"") ->  | G20: =计算!AN19 -> 
C21: =计算!C20 ->  | D21: =计算!AL20 ->  | E21: =计算!AM20 ->  | F21: =IFERROR(E21*设置!D23/SUM(tbl_课程[学时]),"") ->  | G21: =计算!AN20 -> 
C22: =计算!C21 ->  | D22: =计算!AL21 ->  | E22: =计算!AM21 ->  | F22: =IFERROR(E22*设置!D24/SUM(tbl_课程[学时]),"") ->  | G22: =计算!AN21 -> 
C23: =计算!C22 ->  | D23: =计算!AL22 ->  | E23: =计算!AM22 ->  | F23: =IFERROR(E23*设置!D25/SUM(tbl_课程[学时]),"") ->  | G23: =计算!AN22 -> 
C24: =计算!C23 ->  | D24: =计算!AL23 ->  | E24: =计算!AM23 ->  | F24: =IFERROR(E24*设置!D26/SUM(tbl_课程[学时]),"") ->  | G24: =计算!AN23 -> 
C25: =计算!C24 ->  | D25: =计算!AL24 ->  | E25: =计算!AM24 ->  | F25: =IFERROR(E25*设置!D27/SUM(tbl_课程[学时]),"") ->  | G25: =计算!AN24 -> 
C26: =计算!C25 ->  | D26: =计算!AL25 ->  | E26: =计算!AM25 ->  | F26: =IFERROR(E26*设置!D28/SUM(tbl_课程[学时]),"") ->  | G26: =计算!AN25 -> 
C27: =计算!C26 ->  | D27: =计算!AL26 ->  | E27: =计算!AM26 ->  | F27: =IFERROR(E27*设置!D29/SUM(tbl_课程[学时]),"") ->  | G27: =计算!AN26 -> 
C28: =计算!C27 ->  | D28: =计算!AL27 ->  | E28: =计算!AM27 ->  | F28: =IFERROR(E28*设置!D30/SUM(tbl_课程[学时]),"") ->  | G28: =计算!AN27 -> 
C29: =计算!C28 ->  | D29: =计算!AL28 ->  | E29: =计算!AM28 ->  | F29: =IFERROR(E29*设置!D31/SUM(tbl_课程[学时]),"") ->  | G29: =计算!AN28 -> 
C30: =计算!C29 ->  | D30: =计算!AL29 ->  | E30: =计算!AM29 ->  | F30: =IFERROR(E30*设置!D32/SUM(tbl_课程[学时]),"") ->  | G30: =计算!AN29 -> 
C31: =计算!C30 ->  | D31: =计算!AL30 ->  | E31: =计算!AM30 ->  | F31: =IFERROR(E31*设置!D33/SUM(tbl_课程[学时]),"") ->  | G31: =计算!AN30 -> 

Sheet 设置
B1: 设置
C2: 分数和 GPA 映射
C3: 百分比 | D3: 0% | E3: 60% | F3: 63% | G3: 67% | H3: 70% | I3: 73% | J3: 77% | K3: 80% | L3: 83% | M3: 87% | N3: 90% | O3: 93% | P3: 97%
C4: 字母成绩 | D4: F | E4: D- | F4: D | G4: D+ | H4: C- | I4: C | J4: C+ | K4: B- | L4: B | M4: B+ | N4: A- | O4: A | P4: A+
C5: GPA | D5: 0 | E5: 0.67 | F5: 1 | G5: 1.33 | H5: 1.67 | I5: 2 | J5: 2.33 | K5: 2.67 | L5: 3 | M5: 3.33 | N5: 3.67 | O5: 4 | P5: 4
C7: 多达 25 门课程的平均分数
C8: 参与的课程 | D8: 学时 | E8: 家庭作业 | F8: 论文 | G8: 测验 | H8: 项目 | I8: 期中考试 | J8: 期末考试 | K8: 其他 | L8: 百分比总计
C9: 现代法语 | D9: 3.0 | E9: 10% | F9: 15% | G9: 15% | H9: 10% | I9: 20% | J9: 30% | L9: =SUM(tbl_课程[[#This Row],[家庭作业]:[其他]]) -> 100%
C10: 理论物理 | D10: 3.0 | E10: 15% | F10: 15% | G10: 10% | H10: 10% | I10: 15% | J10: 30% | K10: 5% | L10: =SUM(tbl_课程[[#This Row],[家庭作业]:[其他]]) -> 100%
C11: 数学 1 | D11: 4.0 | E11: 10% | F11: 15% | G11: 15% | H11: 10% | I11: 20% | J11: 30% | L11: =SUM(tbl_课程[[#This Row],[家庭作业]:[其他]]) -> 100%
C12: 数学 2 | D12: 4.0 | E12: 15% | F12: 15% | G12: 10% | H12: 10% | I12: 15% | J12: 30% | K12: 5% | L12: =SUM(tbl_课程[[#This Row],[家庭作业]:[其他]]) -> 100%
C13: 高级 Java 编程 | D13: 5.0 | E13: 15% | F13: 15% | G13: 10% | H13: 10% | I13: 20% | J13: 30% | L13: =SUM(tbl_课程[[#This Row],[家庭作业]:[其他]]) -> 100%
C14: 西班牙语 | D14: 3.0 | E14: 10% | F14: 15% | G14: 17% | H14: 13% | I14: 20% | J14: 20% | K14: 5% | L14: =SUM(tbl_课程[[#This Row],[家庭作业]:[其他]]) -> 100%
C15: 作文 | D15: 2.0 | E15: 15% | F15: 15% | G15: 12% | H15: 15% | I15: 15% | J15: 25% | K15: 3% | L15: =SUM(tbl_课程[[#This Row],[家庭作业]:[其他]]) -> 100%

Sheet 计算 (hidden)
B1: 计算
C2: 此工作表为您提供成绩和 GPA 的计算，因此应保持隐藏。对此表做出的任何更改均可能导致错误。
C4: 当前课程列表 | D4: 分数（其一） | AC4: 成绩计算
C5: 课程 | D5: 1 | E5: 2 | F5: 3 | G5: 4 | H5: 5 | I5: 6 | J5: 7 | K5: 8 | L5: 9 | M5: 10 | N5: 11 | O5: 12 | P5: 13 | Q5: 14 | R5: 15 | S5: 16 | T5: 17 | U5: 18 | V5: 19 | W5: 20 | X5: 21 | Y5: 22 | Z5: 23 | AA5: 24 | AB5: 25 | AC5: =tbl_课程[[#Headers],[家庭作业]] -> 家庭作业 | AD5: =tbl_课程[[#Headers],[论文]] -> 论文 | AE5: =tbl_课程[[#Headers],[测验]] -> 测验 | AF5: =tbl_课程[[#Headers],[项目]] -> 项目 | AG5: =tbl_课程[[#Headers],[期中考试]] -> 期中考试 | AH5: =tbl_课程[[#Headers],[期末考试]] -> 期末考试 | AI5: =tbl_课程[[#Headers],[其他]] -> 其他 | AJ5: 总计 | AK5: 满分 | AL5: 总百分比 | AM5: 成绩点 | AN5: 字母成绩
C6: =IF(设置!C9="","",设置!C9) -> 现代法语 | D6: =IFERROR(INDEX(tb_课程分数[],MATCH($C6:$C30&D$5:AB$5,计算!$C$33:$C$657,0),4),"") -> 80% | E6: 90% | F6: 80% | AC6: =IFERROR(AVERAGEIFS(tb_课程分数[分数],tb_课程分数[课程],计算!$C6,tb_课程分数[类型],计算!AC$5)*设置!E9,"") -> 0.08333333333 | AD6: =IFERROR(AVERAGEIFS(tb_课程分数[分数],tb_课程分数[课程],计算!$C6,tb_课程分数[类型],计算!AD$5)*设置!F9,"") ->  | AE6: =IFERROR(AVERAGEIFS(tb_课程分数[分数],tb_课程分数[课程],计算!$C6,tb_课程分数[类型],计算!AE$5)*设置!G9,"") ->  | AF6: =IFERROR(AVERAGEIFS(tb_课程分数[分数],tb_课程分数[课程],计算!$C6,tb_课程分数[类型],计算!AF$5)*设置!H9,"") ->  | AG6: =IFERROR(AVERAGEIFS(tb_课程分数[分数],tb_课程分数[课程],计算!$C6,tb_课程分数[类型],计算!AG$5)*设置!I9,"") ->  | AH6: =IFERROR(AVERAGEIFS(tb_课程分数[分数],tb_课程分数[课程],计算!$C6,tb_课程分数[类型],计算!AH$5)*设置!J9,"") ->  | AI6: =IFERROR(AVERAGEIFS(tb_课程分数[分数],tb_课程分数[课程],计算!$C6,tb_课程分数[类型],计算!AI$5)*设置!K9,"") ->  | AJ6: =SUM(AC6:AI6) -> 0.08333333333 | AK6: =SUMIFS(设置!E9:K9,计算!AC6:AI6,">0") -> 0.1 | AL6: =IFERROR(AJ6/AK6,"") -> 83% | AM6: =IFERROR(HLOOKUP(AL6,lstGPAMapping,3),"") -> 3 | AN6: =IFERROR(HLOOKUP(AL6,lstGPAMapping,2),"") -> B
C7: =IF(设置!C10="","",设置!C10) -> 理论物理 | D7: 95% | AC7: =IFERROR(AVERAGEIFS(tb_课程分数[分数],tb_课程分数[课程],计算!$C7,tb_课程分数[类型],计算!AC$5)*设置!E10,"") -> 0.1425 | AD7: =IFERROR(AVERAGEIFS(tb_课程分数[分数],tb_课程分数[课程],计算!$C7,tb_课程分数[类型],计算!AD$5)*设置!F10,"") ->  | AE7: =IFERROR(AVERAGEIFS(tb_课程分数[分数],tb_课程分数[课程],计算!$C7,tb_课程分数[类型],计算!AE$5)*设置!G10,"") ->  | AF7: =IFERROR(AVERAGEIFS(tb_课程分数[分数],tb_课程分数[课程],计算!$C7,tb_课程分数[类型],计算!AF$5)*设置!H10,"") ->  | AG7: =IFERROR(AVERAGEIFS(tb_课程分数[分数],tb_课程分数[课程],计算!$C7,tb_课程分数[类型],计算!AG$5)*设置!I10,"") ->  | AH7: =IFERROR(AVERAGEIFS(tb_课程分数[分数],tb_课程分数[课程],计算!$C7,tb_课程分数[类型],计算!AH$5)*设置!J10,"") ->  | AI7: =IFERROR(AVERAGEIFS(tb_课程分数[分数],tb_课程分数[课程],计算!$C7,tb_课程分数[类型],计算!AI$5)*设置!K10,"") ->  | AJ7: =SUM(AC7:AI7) -> 0.1425 | AK7: =SUMIFS(设置!E10:K10,计算!AC7:AI7,">0") -> 0.15 | AL7: =IFERROR(AJ7/AK7,"") -> 95% | AM7: 4 | AN7: A
C8: =IF(设置!C11="","",设置!C11) -> 数学 1 | D8: 80% | E8: 80% | AC8: =IFERROR(AVERAGEIFS(tb_课程分数[分数],tb_课程分数[课程],计算!$C8,tb_课程分数[类型],计算!AC$5)*设置!E11,"") -> 0.08 | AD8: =IFERROR(AVERAGEIFS(tb_课程分数[分数],tb_课程分数[课程],计算!$C8,tb_课程分数[类型],计算!AD$5)*设置!F11,"") ->  | AE8: =IFERROR(AVERAGEIFS(tb_课程分数[分数],tb_课程分数[课程],计算!$C8,tb_课程分数[类型],计算!AE$5)*设置!G11,"") ->  | AF8: =IFERROR(AVERAGEIFS(tb_课程分数[分数],tb_课程分数[课程],计算!$C8,tb_课程分数[类型],计算!AF$5)*设置!H11,"") ->  | AG8: =IFERROR(AVERAGEIFS(tb_课程分数[分数],tb_课程分数[课程],计算!$C8,tb_课程分数[类型],计算!AG$5)*设置!I11,"") ->  | AH8: =IFERROR(AVERAGEIFS(tb_课程分数[分数],tb_课程分数[课程],计算!$C8,tb_课程分数[类型],计算!AH$5)*设置!J11,"") ->  | AI8: =IFERROR(AVERAGEIFS(tb_课程分数[分数],tb_课程分数[课程],计算!$C8,tb_课程分数[类型],计算!AI$5)*设置!K11,"") ->  | AJ8: 0.08 | AK8: =SUMIFS(设置!E11:K11,计算!AC8:AI8,">0") -> 0.1 | AL8: 80% | AM8: 2.67 | AN8: B-
C9: =IF(设置!C12="","",设置!C12) -> 数学 2 | D9: 85% | E9: 95% | AC9: =IFERROR(AVERAGEIFS(tb_课程分数[分数],tb_课程分数[课程],计算!$C9,tb_课程分数[类型],计算!AC$5)*设置!E12,"") -> 0.1275 | AD9: =IFERROR(AVERAGEIFS(tb_课程分数[分数],tb_课程分数[课程],计算!$C9,tb_课程分数[类型],计算!AD$5)*设置!F12,"") ->  | AE9: =IFERROR(AVERAGEIFS(tb_课程分数[分数],tb_课程分数[课程],计算!$C9,tb_课程分数[类型],计算!AE$5)*设置!G12,"") -> 0.095 | AF9: =IFERROR(AVERAGEIFS(tb_课程分数[分数],tb_课程分数[课程],计算!$C9,tb_课程分数[类型],计算!AF$5)*设置!H12,"") ->  | AG9: =IFERROR(AVERAGEIFS(tb_课程分数[分数],tb_课程分数[课程],计算!$C9,tb_课程分数[类型],计算!AG$5)*设置!I12,"") ->  | AH9: =IFERROR(AVERAGEIFS(tb_课程分数[分数],tb_课程分数[课程],计算!$C9,tb_课程分数[类型],计算!AH$5)*设置!J12,"") ->  | AI9: =IFERROR(AVERAGEIFS(tb_课程分数[分数],tb_课程分数[课程],计算!$C9,tb_课程分数[类型],计算!AI$5)*设置!K12,"") ->  | AJ9: 0.2225 | AK9: =SUMIFS(设置!E12:K12,计算!AC9:AI9,">0") -> 0.25 | AL9: 89% | AM9: 3.33 | AN9: B+
C10: =IF(设置!C13="","",设置!C13) -> 高级 Java 编程 | D10: 75% | AC10: =IFERROR(AVERAGEIFS(tb_课程分数[分数],tb_课程分数[课程],计算!$C10,tb_课程分数[类型],计算!AC$5)*设置!E13,"") ->  | AD10: =IFERROR(AVERAGEIFS(tb_课程分数[分数],tb_课程分数[课程],计算!$C10,tb_课程分数[类型],计算!AD$5)*设置!F13,"") ->  | AE10: =IFERROR(AVERAGEIFS(tb_课程分数[分数],tb_课程分数[课程],计算!$C10,tb_课程分数[类型],计算!AE$5)*设置!G13,"") ->  | AF10: =IFERROR(AVERAGEIFS(tb_课程分数[分数],tb_课程分数[课程],计算!$C10,tb_课程分数[类型],计算!AF$5)*设置!H13,"") ->  | AG10: =IFERROR(AVERAGEIFS(tb_课程分数[分数],tb_课程分数[课程],计算!$C10,tb_课程分数[类型],计算!AG$5)*设置!I13,"") -> 0.15 | AH10: =IFERROR(AVERAGEIFS(tb_课程分数[分数],tb_课程分数[课程],计算!$C10,tb_课程分数[类型],计算!AH$5)*设置!J13,"") ->  | AI10: =IFERROR(AVERAGEIFS(tb_课程分数[分数],tb_课程分数[课程],计算!$C10,tb_课程分数[类型],计算!AI$5)*设置!K13,"") ->  | AJ10: 0.15 | AK10: =SUMIFS(设置!E13:K13,计算!AC10:AI10,">0") -> 0.2 | AL10: 75% | AM10: 2 | AN10: C
C11: =IF(设置!C14="","",设置!C14) -> 西班牙语 | D11: 50% | AC11: =IFERROR(AVERAGEIFS(tb_课程分数[分数],tb_课程分数[课程],计算!$C11,tb_课程分数[类型],计算!AC$5)*设置!E14,"") -> 0.05 | AD11: =IFERROR(AVERAGEIFS(tb_课程分数[分数],tb_课程分数[课程],计算!$C11,tb_课程分数[类型],计算!AD$5)*设置!F14,"") ->  | AE11: =IFERROR(AVERAGEIFS(tb_课程分数[分数],tb_课程分数[课程],计算!$C11,tb_课程分数[类型],计算!AE$5)*设置!G14,"") ->  | AF11: =IFERROR(AVERAGEIFS(tb_课程分数[分数],tb_课程分数[课程],计算!$C11,tb_课程分数[类型],计算!AF$5)*设置!H14,"") ->  | AG11: =IFERROR(AVERAGEIFS(tb_课程分数[分数],tb_课程分数[课程],计算!$C11,tb_课程分数[类型],计算!AG$5)*设置!I14,"") ->  | AH11: =IFERROR(AVERAGEIFS(tb_课程分数[分数],tb_课程分数[课程],计算!$C11,tb_课程分数[类型],计算!AH$5)*设置!J14,"") ->  | AI11: =IFERROR(AVERAGEIFS(tb_课程分数[分数],tb_课程分数[课程],计算!$C11,tb_课程分数[类型],计算!AI$5)*设置!K14,"") ->  | AJ11: 0.05 | AK11: =SUMIFS(设置!E14:K14,计算!AC11:AI11,">0") -> 0.1 | AL11: 50% | AM11: 0 | AN11: F
C12: =IF(设置!C15="","",设置!C15) -> 作文 | D12: 95% | AC12: =IFERROR(AVERAGEIFS(tb_课程分数[分数],tb_课程分数[课程],计算!$C12,tb_课程分数[类型],计算!AC$5)*设置!E15,"") ->  | AD12: =IFERROR(AVERAGEIFS(tb_课程分数[分数],tb_课程分数[课程],计算!$C12,tb_课程分数[类型],计算!AD$5)*设置!F15,"") -> 0.1425 | AE12: =IFERROR(AVERAGEIFS(tb_课程分数[分数],tb_课程分数[课程],计算!$C12,tb_课程分数[类型],计算!AE$5)*设置!G15,"") ->  | AF12: =IFERROR(AVERAGEIFS(tb_课程分数[分数],tb_课程分数[课程],计算!$C12,tb_课程分数[类型],计算!AF$5)*设置!H15,"") ->  | AG12: =IFERROR(AVERAGEIFS(tb_课程分数[分数],tb_课程分数[课程],计算!$C12,tb_课程分数[类型],计算!AG$5)*设置!I15,"") ->  | AH12: =IFERROR(AVERAGEIFS(tb_课程分数[分数],tb_课程分数[课程],计算!$C12,tb_课程分数[类型],计算!AH$5)*设置!J15,"") ->  | AI12: =IFERROR(AVERAGEIFS(tb_课程分数[分数],tb_课程分数[课程],计算!$C12,tb_课程分数[类型],计算!AI$5)*设置!K15,"") ->  | AJ12: 0.1425 | AK12: =SUMIFS(设置!E15:K15,计算!AC12:AI12,">0") -> 0.15 | AL12: 95% | AM12: 4 | AN12: A
C13: =IF(设置!C16="","",设置!C16) ->  | AC13: =IFERROR(AVERAGEIFS(tb_课程分数[分数],tb_课程分数[课程],计算!$C13,tb_课程分数[类型],计算!AC$5)*设置!#REF!,"") ->  | AD13: =IFERROR(AVERAGEIFS(tb_课程分数[分数],tb_课程分数[课程],计算!$C13,tb_课程分数[类型],计算!AD$5)*设置!#REF!,"") ->  | AE13: =IFERROR(AVERAGEIFS(tb_课程分数[分数],tb_课程分数[课程],计算!$C13,tb_课程分数[类型],计算!AE$5)*设置!#REF!,"") ->  | AF13: =IFERROR(AVERAGEIFS(tb_课程分数[分数],tb_课程分数[课程],计算!$C13,tb_课程分数[类型],计算!AF$5)*设置!#REF!,"") ->  | AG13: =IFERROR(AVERAGEIFS(tb_课程分数[分数],tb_课程分数[课程],计算!$C13,tb_课程分数[类型],计算!AG$5)*设置!#REF!,"") ->  | AH13: =IFERROR(AVERAGEIFS(tb_课程分数[分数],tb_课程分数[课程],计算!$C13,tb_课程分数[类型],计算!AH$5)*设置!#REF!,"") ->  | AI13: =IFERROR(AVERAGEIFS(tb_课程分数[分数],tb_课程分数[课程],计算!$C13,tb_课程分数[类型],计算!AI$5)*设置!#REF!,"") ->  | AJ13: 0 | AK13: =SUMIFS(设置!E16:K16,计算!AC13:AI13,">0") -> 0
C14: =IF(设置!C17="","",设置!C17) ->  | AC14: =IFERROR(AVERAGEIFS(tb_课程分数[分数],tb_课程分数[课程],计算!$C14,tb_课程分数[类型],计算!AC$5)*设置!#REF!,"") ->  | AD14: =IFERROR(AVERAGEIFS(tb_课程分数[分数],tb_课程分数[课程],计算!$C14,tb_课程分数[类型],计算!AD$5)*设置!#REF!,"") ->  | AE14: =IFERROR(AVERAGEIFS(tb_课程分数[分数],tb_课程分数[课程],计算!$C14,tb_课程分数[类型],计算!AE$5)*设置!#REF!,"") ->  | AF14: =IFERROR(AVERAGEIFS(tb_课程分数[分数],tb_课程分数[课程],计算!$C14,tb_课程分数[类型],计算!AF$5)*设置!#REF!,"") ->  | AG14: =IFERROR(AVERAGEIFS(tb_课程分数[分数],tb_课程分数[课程],计算!$C14,tb_课程分数[类型],计算!AG$5)*设置!#REF!,"") ->  | AH14: =IFERROR(AVERAGEIFS(tb_课程分数[分数],tb_课程分数[课程],计算!$C14,tb_课程分数[类型],计算!AH$5)*设置!#REF!,"") ->  | AI14: =IFERROR(AVERAGEIFS(tb_课程分数[分数],tb_课程分数[课程],计算!$C14,tb_课程分数[类型],计算!AI$5)*设置!#REF!,"") ->  | AJ14: 0 | AK14: =SUMIFS(设置!E17:K17,计算!AC14:AI14,">0") -> 0
C15: =IF(设置!C18="","",设置!C18) ->  | AC15: =IFERROR(AVERAGEIFS(tb_课程分数[分数],tb_课程分数[课程],计算!$C15,tb_课程分数[类型],计算!AC$5)*设置!#REF!,"") ->  | AD15: =IFERROR(AVERAGEIFS(tb_课程分数[分数],tb_课程分数[课程],计算!$C15,tb_课程分数[类型],计算!AD$5)*设置!#REF!,"") ->  | AE15: =IFERROR(AVERAGEIFS(tb_课程分数[分数],tb_课程分数[课程],计算!$C15,tb_课程分数[类型],计算!AE$5)*设置!#REF!,"") ->  | AF15: =IFERROR(AVERAGEIFS(tb_课程分数[分数],tb_课程分数[课程],计算!$C15,tb_课程分数[类型],计算!AF$5)*设置!#REF!,"") ->  | AG15: =IFERROR(AVERAGEIFS(tb_课程分数[分数],tb_课程分数[课程],计算!$C15,tb_课程分数[类型],计算!AG$5)*设置!#REF!,"") ->  | AH15: =IFERROR(AVERAGEIFS(tb_课程分数[分数],tb_课程分数[课程],计算!$C15,tb_课程分数[类型],计算!AH$5)*设置!#REF!,"") ->  | AI15: =IFERROR(AVERAGEIFS(tb_课程分数[分数],tb_课程分数[课程],计算!$C15,tb_课程分数[类型],计算!AI$5)*设置!#REF!,"") ->  | AJ15: 0 | AK15: =SUMIFS(设置!E18:K18,计算!AC15:AI15,">0") -> 0
C16: =IF(设置!C19="","",设置!C19) ->  | AC16: =IFERROR(AVERAGEIFS(tb_课程分数[分数],tb_课程分数[课程],计算!$C16,tb_课程分数[类型],计算!AC$5)*设置!#REF!,"") ->  | AD16: =IFERROR(AVERAGEIFS(tb_课程分数[分数],tb_课程分数[课程],计算!$C16,tb_课程分数[类型],计算!AD$5)*设置!#REF!,"") ->  | AE16: =IFERROR(AVERAGEIFS(tb_课程分数[分数],tb_课程分数[课程],计算!$C16,tb_课程分数[类型],计算!AE$5)*设置!#REF!,"") ->  | AF16: =IFERROR(AVERAGEIFS(tb_课程分数[分数],tb_课程分数[课程],计算!$C16,tb_课程分数[类型],计算!AF$5)*设置!#REF!,"") ->  | AG16: =IFERROR(AVERAGEIFS(tb_课程分数[分数],tb_课程分数[课程],计算!$C16,tb_课程分数[类型],计算!AG$5)*设置!#REF!,"") ->  | AH16: =IFERROR(AVERAGEIFS(tb_课程分数[分数],tb_课程分数[课程],计算!$C16,tb_课程分数[类型],计算!AH$5)*设置!#REF!,"") ->  | AI16: =IFERROR(AVERAGEIFS(tb_课程分数[分数],tb_课程分数[课程],计算!$C16,tb_课程分数[类型],计算!AI$5)*设置!#REF!,"") ->  | AJ16: 0 | AK16: =SUMIFS(设置!E19:K19,计算!AC16:AI16,">0") -> 0
C17: =IF(设置!C20="","",设置!C20) ->  | AC17: =IFERROR(AVERAGEIFS(tb_课程分数[分数],tb_课程分数[课程],计算!$C17,tb_课程分数[类型],计算!AC$5)*设置!#REF!,"") ->  | AD17: =IFERROR(AVERAGEIFS(tb_课程分数[分数],tb_课程分数[课程],计算!$C17,tb_课程分数[类型],计算!AD$5)*设置!#REF!,"") ->  | AE17: =IFERROR(AVERAGEIFS(tb_课程分数[分数],tb_课程分数[课程],计算!$C17,tb_课程分数[类型],计算!AE$5)*设置!#REF!,"") ->  | AF17: =IFERROR(AVERAGEIFS(tb_课程分数[分数],tb_课程分数[课程],计算!$C17,tb_课程分数[类型],计算!AF$5)*设置!#REF!,"") ->  | AG17: =IFERROR(AVERAGEIFS(tb_课程分数[分数],tb_课程分数[课程],计算!$C17,tb_课程分数[类型],计算!AG$5)*设置!#REF!,"") ->  | AH17: =IFERROR(AVERAGEIFS(tb_课程分数[分数],tb_课程分数[课程],计算!$C17,tb_课程分数[类型],计算!AH$5)*设置!#REF!,"") ->  | AI17: =IFERROR(AVERAGEIFS(tb_课程分数[分数],tb_课程分数[课程],计算!$C17,tb_课程分数[类型],计算!AI$5)*设置!#REF!,"") ->  | AJ17: 0 | AK17: =SUMIFS(设置!E20:K20,计算!AC17:AI17,">0") -> 0
C18: =IF(设置!C21="","",设置!C21) ->  | AC18: =IFERROR(AVERAGEIFS(tb_课程分数[分数],tb_课程分数[课程],计算!$C18,tb_课程分数[类型],计算!AC$5)*设置!#REF!,"") ->  | AD18: =IFERROR(AVERAGEIFS(tb_课程分数[分数],tb_课程分数[课程],计算!$C18,tb_课程分数[类型],计算!AD$5)*设置!#REF!,"") ->  | AE18: =IFERROR(AVERAGEIFS(tb_课程分数[分数],tb_课程分数[课程],计算!$C18,tb_课程分数[类型],计算!AE$5)*设置!#REF!,"") ->  | AF18: =IFERROR(AVERAGEIFS(tb_课程分数[分数],tb_课程分数[课程],计算!$C18,tb_课程分数[类型],计算!AF$5)*设置!#REF!,"") ->  | AG18: =IFERROR(AVERAGEIFS(tb_课程分数[分数],tb_课程分数[课程],计算!$C18,tb_课程分数[类型],计算!AG$5)*设置!#REF!,"") ->  | AH18: =IFERROR(AVERAGEIFS(tb_课程分数[分数],tb_课程分数[课程],计算!$C18,tb_课程分数[类型],计算!AH$5)*设置!#REF!,"") ->  | AI18: =IFERROR(AVERAGEIFS(tb_课程分数[分数],tb_课程分数[课程],计算!$C18,tb_课程分数[类型],计算!AI$5)*设置!#REF!,"") ->  | AJ18: 0 | AK18: =SUMIFS(设置!E21:K21,计算!AC18:AI18,">0") -> 0
C19: =IF(设置!C22="","",设置!C22) ->  | AC19: =IFERROR(AVERAGEIFS(tb_课程分数[分数],tb_课程分数[课程],计算!$C19,tb_课程分数[类型],计算!AC$5)*设置!#REF!,"") ->  | AD19: =IFERROR(AVERAGEIFS(tb_课程分数[分数],tb_课程分数[课程],计算!$C19,tb_课程分数[类型],计算!AD$5)*设置!#REF!,"") ->  | AE19: =IFERROR(AVERAGEIFS(tb_课程分数[分数],tb_课程分数[课程],计算!$C19,tb_课程分数[类型],计算!AE$5)*设置!#REF!,"") ->  | AF19: =IFERROR(AVERAGEIFS(tb_课程分数[分数],tb_课程分数[课程],计算!$C19,tb_课程分数[类型],计算!AF$5)*设置!#REF!,"") ->  | AG19: =IFERROR(AVERAGEIFS(tb_课程分数[分数],tb_课程分数[课程],计算!$C19,tb_课程分数[类型],计算!AG$5)*设置!#REF!,"") ->  | AH19: =IFERROR(AVERAGEIFS(tb_课程分数[分数],tb_课程分数[课程],计算!$C19,tb_课程分数[类型],计算!AH$5)*设置!#REF!,"") ->  | AI19: =IFERROR(AVERAGEIFS(tb_课程分数[分数],tb_课程分数[课程],计算!$C19,tb_课程分数[类型],计算!AI$5)*设置!#REF!,"") ->  | AJ19: 0 | AK19: =SUMIFS(设置!E22:K22,计算!AC19:AI19,">0") -> 0
C20: =IF(设置!C23="","",设置!C23) ->  | AC20: =IFERROR(AVERAGEIFS(tb_课程分数[分数],tb_课程分数[课程],计算!$C20,tb_课程分数[类型],计算!AC$5)*设置!#REF!,"") ->  | AD20: =IFERROR(AVERAGEIFS(tb_课程分数[分数],tb_课程分数[课程],计算!$C20,tb_课程分数[类型],计算!AD$5)*设置!#REF!,"") ->  | AE20: =IFERROR(AVERAGEIFS(tb_课程分数[分数],tb_课程分数[课程],计算!$C20,tb_课程分数[类型],计算!AE$5)*设置!#REF!,"") ->  | AF20: =IFERROR(AVERAGEIFS(tb_课程分数[分数],tb_课程分数[课程],计算!$C20,tb_课程分数[类型],计算!AF$5)*设置!#REF!,"") ->  | AG20: =IFERROR(AVERAGEIFS(tb_课程分数[分数],tb_课程分数[课程],计算!$C20,tb_课程分数[类型],计算!AG$5)*设置!#REF!,"") ->  | AH20: =IFERROR(AVERAGEIFS(tb_课程分数[分数],tb_课程分数[课程],计算!$C20,tb_课程分数[类型],计算!AH$5)*设置!#REF!,"") ->  | AI20: =IFERROR(AVERAGEIFS(tb_课程分数[分数],tb_课程分数[课程],计算!$C20,tb_课程分数[类型],计算!AI$5)*设置!#REF!,"") ->  | AJ20: 0 | AK20: =SUMIFS(设置!E23:K23,计算!AC20:AI20,">0") -> 0
C21: =IF(设置!C24="","",设置!C24) ->  | AC21: =IFERROR(AVERAGEIFS(tb_课程分数[分数],tb_课程分数[课程],计算!$C21,tb_课程分数[类型],计算!AC$5)*设置!#REF!,"") ->  | AD21: =IFERROR(AVERAGEIFS(tb_课程分数[分数],tb_课程分数[课程],计算!$C21,tb_课程分数[类型],计算!AD$5)*设置!#REF!,"") ->  | AE21: =IFERROR(AVERAGEIFS(tb_课程分数[分数],tb_课程分数[课程],计算!$C21,tb_课程分数[类型],计算!AE$5)*设置!#REF!,"") ->  | AF21: =IFERROR(AVERAGEIFS(tb_课程分数[分数],tb_课程分数[课程],计算!$C21,tb_课程分数[类型],计算!AF$5)*设置!#REF!,"") ->  | AG21: =IFERROR(AVERAGEIFS(tb_课程分数[分数],tb_课程分数[课程],计算!$C21,tb_课程分数[类型],计算!AG$5)*设置!#REF!,"") ->  | AH21: =IFERROR(AVERAGEIFS(tb_课程分数[分数],tb_课程分数[课程],计算!$C21,tb_课程分数[类型],计算!AH$5)*设置!#REF!,"") ->  | AI21: =IFERROR(AVERAGEIFS(tb_课程分数[分数],tb_课程分数[课程],计算!$C21,tb_课程分数[类型],计算!AI$5)*设置!#REF!,"") ->  | AJ21: 0 | AK21: =SUMIFS(设置!E24:K24,计算!AC21:AI21,">0") -> 0
C22: =IF(设置!C25="","",设置!C25) ->  | AC22: =IFERROR(AVERAGEIFS(tb_课程分数[分数],tb_课程分数[课程],计算!$C22,tb_课程分数[类型],计算!AC$5)*设置!#REF!,"") ->  | AD22: =IFERROR(AVERAGEIFS(tb_课程分数[分数],tb_课程分数[课程],计算!$C22,tb_课程分数[类型],计算!AD$5)*设置!#REF!,"") ->  | AE22: =IFERROR(AVERAGEIFS(tb_课程分数[分数],tb_课程分数[课程],计算!$C22,tb_课程分数[类型],计算!AE$5)*设置!#REF!,"") ->  | AF22: =IFERROR(AVERAGEIFS(tb_课程分数[分数],tb_课程分数[课程],计算!$C22,tb_课程分数[类型],计算!AF$5)*设置!#REF!,"") ->  | AG22: =IFERROR(AVERAGEIFS(tb_课程分数[分数],tb_课程分数[课程],计算!$C22,tb_课程分数[类型],计算!AG$5)*设置!#REF!,"") ->  | AH22: =IFERROR(AVERAGEIFS(tb_课程分数[分数],tb_课程分数[课程],计算!$C22,tb_课程分数[类型],计算!AH$5)*设置!#REF!,"") ->  | AI22: =IFERROR(AVERAGEIFS(tb_课程分数[分数],tb_课程分数[课程],计算!$C22,tb_课程分数[类型],计算!AI$5)*设置!#REF!,"") ->  | AJ22: 0 | AK22: =SUMIFS(设置!E25:K25,计算!AC22:AI22,">0") -> 0
C23: =IF(设置!C26="","",设置!C26) ->  | AC23: =IFERROR(AVERAGEIFS(tb_课程分数[分数],tb_课程分数[课程],计算!$C23,tb_课程分数[类型],计算!AC$5)*设置!#REF!,"") ->  | AD23: =IFERROR(AVERAGEIFS(tb_课程分数[分数],tb_课程分数[课程],计算!$C23,tb_课程分数[类型],计算!AD$5)*设置!#REF!,"") ->  | AE23: =IFERROR(AVERAGEIFS(tb_课程分数[分数],tb_课程分数[课程],计算!$C23,tb_课程分数[类型],计算!AE$5)*设置!#REF!,"") ->  | AF23: =IFERROR(AVERAGEIFS(tb_课程分数[分数],tb_课程分数[课程],计算!$C23,tb_课程分数[类型],计算!AF$5)*设置!#REF!,"") ->  | AG23: =IFERROR(AVERAGEIFS(tb_课程分数[分数],tb_课程分数[课程],计算!$C23,tb_课程分数[类型],计算!AG$5)*设置!#REF!,"") ->  | AH23: =IFERROR(AVERAGEIFS(tb_课程分数[分数],tb_课程分数[课程],计算!$C23,tb_课程分数[类型],计算!AH$5)*设置!#REF!,"") ->  | AI23: =IFERROR(AVERAGEIFS(tb_课程分数[分数],tb_课程分数[课程],计算!$C23,tb_课程分数[类型],计算!AI$5)*设置!#REF!,"") ->  | AJ23: 0 | AK23: =SUMIFS(设置!E26:K26,计算!AC23:AI23,">0") -> 0
C24: =IF(设置!C27="","",设置!C27) ->  | AC24: =IFERROR(AVERAGEIFS(tb_课程分数[分数],tb_课程分数[课程],计算!$C24,tb_课程分数[类型],计算!AC$5)*设置!#REF!,"") ->  | AD24: =IFERROR(AVERAGEIFS(tb_课程分数[分数],tb_课程分数[课程],计算!$C24,tb_课程分数[类型],计算!AD$5)*设置!#REF!,"") ->  | AE24: =IFERROR(AVERAGEIFS(tb_课程分数[分数],tb_课程分数[课程],计算!$C24,tb_课程分数[类型],计算!AE$5)*设置!#REF!,"") ->  | AF24: =IFERROR(AVERAGEIFS(tb_课程分数[分数],tb_课程分数[课程],计算!$C24,tb_课程分数[类型],计算!AF$5)*设置!#REF!,"") ->  | AG24: =IFERROR(AVERAGEIFS(tb_课程分数[分数],tb_课程分数[课程],计算!$C24,tb_课程分数[类型],计算!AG$5)*设置!#REF!,"") ->  | AH24: =IFERROR(AVERAGEIFS(tb_课程分数[分数],tb_课程分数[课程],计算!$C24,tb_课程分数[类型],计算!AH$5)*设置!#REF!,"") ->  | AI24: =IFERROR(AVERAGEIFS(tb_课程分数[分数],tb_课程分数[课程],计算!$C24,tb_课程分数[类型],计算!AI$5)*设置!#REF!,"") ->  | AJ24: 0 | AK24: =SUMIFS(设置!E27:K27,计算!AC24:AI24,">0") -> 0
C25: =IF(设置!C28="","",设置!C28) ->  | AC25: =IFERROR(AVERAGEIFS(tb_课程分数[分数],tb_课程分数[课程],计算!$C25,tb_课程分数[类型],计算!AC$5)*设置!#REF!,"") ->  | AD25: =IFERROR(AVERAGEIFS(tb_课程分数[分数],tb_课程分数[课程],计算!$C25,tb_课程分数[类型],计算!AD$5)*设置!#REF!,"") ->  | AE25: =IFERROR(AVERAGEIFS(tb_课程分数[分数],tb_课程分数[课程],计算!$C25,tb_课程分数[类型],计算!AE$5)*设置!#REF!,"") ->  | AF25: =IFERROR(AVERAGEIFS(tb_课程分数[分数],tb_课程分数[课程],计算!$C25,tb_课程分数[类型],计算!AF$5)*设置!#REF!,"") ->  | AG25: =IFERROR(AVERAGEIFS(tb_课程分数[分数],tb_课程分数[课程],计算!$C25,tb_课程分数[类型],计算!AG$5)*设置!#REF!,"") ->  | AH25: =IFERROR(AVERAGEIFS(tb_课程分数[分数],tb_课程分数[课程],计算!$C25,tb_课程分数[类型],计算!AH$5)*设置!#REF!,"") ->  | AI25: =IFERROR(AVERAGEIFS(tb_课程分数[分数],tb_课程分数[课程],计算!$C25,tb_课程分数[类型],计算!AI$5)*设置!#REF!,"") ->  | AJ25: 0 | AK25: =SUMIFS(设置!E28:K28,计算!AC25:AI25,">0") -> 0
C26: =IF(设置!C29="","",设置!C29) ->  | AC26: =IFERROR(AVERAGEIFS(tb_课程分数[分数],tb_课程分数[课程],计算!$C26,tb_课程分数[类型],计算!AC$5)*设置!#REF!,"") ->  | AD26: =IFERROR(AVERAGEIFS(tb_课程分数[分数],tb_课程分数[课程],计算!$C26,tb_课程分数[类型],计算!AD$5)*设置!#REF!,"") ->  | AE26: =IFERROR(AVERAGEIFS(tb_课程分数[分数],tb_课程分数[课程],计算!$C26,tb_课程分数[类型],计算!AE$5)*设置!#REF!,"") ->  | AF26: =IFERROR(AVERAGEIFS(tb_课程分数[分数],tb_课程分数[课程],计算!$C26,tb_课程分数[类型],计算!AF$5)*设置!#REF!,"") ->  | AG26: =IFERROR(AVERAGEIFS(tb_课程分数[分数],tb_课程分数[课程],计算!$C26,tb_课程分数[类型],计算!AG$5)*设置!#REF!,"") ->  | AH26: =IFERROR(AVERAGEIFS(tb_课程分数[分数],tb_课程分数[课程],计算!$C26,tb_课程分数[类型],计算!AH$5)*设置!#REF!,"") ->  | AI26: =IFERROR(AVERAGEIFS(tb_课程分数[分数],tb_课程分数[课程],计算!$C26,tb_课程分数[类型],计算!AI$5)*设置!#REF!,"") ->  | AJ26: 0 | AK26: =SUMIFS(设置!E29:K29,计算!AC26:AI26,">0") -> 0
C27: =IF(设置!C30="","",设置!C30) ->  | AC27: =IFERROR(AVERAGEIFS(tb_课程分数[分数],tb_课程分数[课程],计算!$C27,tb_课程分数[类型],计算!AC$5)*设置!#REF!,"") ->  | AD27: =IFERROR(AVERAGEIFS(tb_课程分数[分数],tb_课程分数[课程],计算!$C27,tb_课程分数[类型],计算!AD$5)*设置!#REF!,"") ->  | AE27: =IFERROR(AVERAGEIFS(tb_课程分数[分数],tb_课程分数[课程],计算!$C27,tb_课程分数[类型],计算!AE$5)*设置!#REF!,"") ->  | AF27: =IFERROR(AVERAGEIFS(tb_课程分数[分数],tb_课程分数[课程],计算!$C27,tb_课程分数[类型],计算!AF$5)*设置!#REF!,"") ->  | AG27: =IFERROR(AVERAGEIFS(tb_课程分数[分数],tb_课程分数[课程],计算!$C27,tb_课程分数[类型],计算!AG$5)*设置!#REF!,"") ->  | AH27: =IFERROR(AVERAGEIFS(tb_课程分数[分数],tb_课程分数[课程],计算!$C27,tb_课程分数[类型],计算!AH$5)*设置!#REF!,"") ->  | AI27: =IFERROR(AVERAGEIFS(tb_课程分数[分数],tb_课程分数[课程],计算!$C27,tb_课程分数[类型],计算!AI$5)*设置!#REF!,"") ->  | AJ27: 0 | AK27: =SUMIFS(设置!E30:K30,计算!AC27:AI27,">0") -> 0
C28: =IF(设置!C31="","",设置!C31) ->  | AC28: =IFERROR(AVERAGEIFS(tb_课程分数[分数],tb_课程分数[课程],计算!$C28,tb_课程分数[类型],计算!AC$5)*设置!#REF!,"") ->  | AD28: =IFERROR(AVERAGEIFS(tb_课程分数[分数],tb_课程分数[课程],计算!$C28,tb_课程分数[类型],计算!AD$5)*设置!#REF!,"") ->  | AE28: =IFERROR(AVERAGEIFS(tb_课程分数[分数],tb_课程分数[课程],计算!$C28,tb_课程分数[类型],计算!AE$5)*设置!#REF!,"") ->  | AF28: =IFERROR(AVERAGEIFS(tb_课程分数[分数],tb_课程分数[课程],计算!$C28,tb_课程分数[类型],计算!AF$5)*设置!#REF!,"") ->  | AG28: =IFERROR(AVERAGEIFS(tb_课程分数[分数],tb_课程分数[课程],计算!$C28,tb_课程分数[类型],计算!AG$5)*设置!#REF!,"") ->  | AH28: =IFERROR(AVERAGEIFS(tb_课程分数[分数],tb_课程分数[课程],计算!$C28,tb_课程分数[类型],计算!AH$5)*设置!#REF!,"") ->  | AI28: =IFERROR(AVERAGEIFS(tb_课程分数[分数],tb_课程分数[课程],计算!$C28,tb_课程分数[类型],计算!AI$5)*设置!#REF!,"") ->  | AJ28: 0 | AK28: =SUMIFS(设置!E31:K31,计算!AC28:AI28,">0") -> 0
C29: =IF(设置!C32="","",设置!C32) ->  | AC29: =IFERROR(AVERAGEIFS(tb_课程分数[分数],tb_课程分数[课程],计算!$C29,tb_课程分数[类型],计算!AC$5)*设置!#REF!,"") ->  | AD29: =IFERROR(AVERAGEIFS(tb_课程分数[分数],tb_课程分数[课程],计算!$C29,tb_课程分数[类型],计算!AD$5)*设置!#REF!,"") ->  | AE29: =IFERROR(AVERAGEIFS(tb_课程分数[分数],tb_课程分数[课程],计算!$C29,tb_课程分数[类型],计算!AE$5)*设置!#REF!,"") ->  | AF29: =IFERROR(AVERAGEIFS(tb_课程分数[分数],tb_课程分数[课程],计算!$C29,tb_课程分数[类型],计算!AF$5)*设置!#REF!,"") ->  | AG29: =IFERROR(AVERAGEIFS(tb_课程分数[分数],tb_课程分数[课程],计算!$C29,tb_课程分数[类型],计算!AG$5)*设置!#REF!,"") ->  | AH29: =IFERROR(AVERAGEIFS(tb_课程分数[分数],tb_课程分数[课程],计算!$C29,tb_课程分数[类型],计算!AH$5)*设置!#REF!,"") ->  | AI29: =IFERROR(AVERAGEIFS(tb_课程分数[分数],tb_课程分数[课程],计算!$C29,tb_课程分数[类型],计算!AI$5)*设置!#REF!,"") ->  | AJ29: 0 | AK29: =SUMIFS(设置!E32:K32,计算!AC29:AI29,">0") -> 0
C30: =IF(设置!C33="","",设置!C33) ->  | AC30: =IFERROR(AVERAGEIFS(tb_课程分数[分数],tb_课程分数[课程],计算!$C30,tb_课程分数[类型],计算!AC$5)*设置!#REF!,"") ->  | AD30: =IFERROR(AVERAGEIFS(tb_课程分数[分数],tb_课程分数[课程],计算!$C30,tb_课程分数[类型],计算!AD$5)*设置!#REF!,"") ->  | AE30: =IFERROR(AVERAGEIFS(tb_课程分数[分数],tb_课程分数[课程],计算!$C30,tb_课程分数[类型],计算!AE$5)*设置!#REF!,"") ->  | AF30: =IFERROR(AVERAGEIFS(tb_课程分数[分数],tb_课程分数[课程],计算!$C30,tb_课程分数[类型],计算!AF$5)*设置!#REF!,"") ->  | AG30: =IFERROR(AVERAGEIFS(tb_课程分数[分数],tb_课程分数[课程],计算!$C30,tb_课程分数[类型],计算!AG$5)*设置!#REF!,"") ->  | AH30: =IFERROR(AVERAGEIFS(tb_课程分数[分数],tb_课程分数[课程],计算!$C30,tb_课程分数[类型],计算!AH$5)*设置!#REF!,"") ->  | AI30: =IFERROR(AVERAGEIFS(tb_课程分数[分数],tb_课程分数[课程],计算!$C30,tb_课程分数[类型],计算!AI$5)*设置!#REF!,"") ->  | AJ30: 0 | AK30: =SUMIFS(设置!E33:K33,计算!AC30:AI30,">0") -> 0
B33: 1 | C33: =分数跟踪器!C4&COUNTIF(分数跟踪器!$C$4:C4,分数跟踪器!C4) -> 现代法语1
B34: 2 | C34: =分数跟踪器!C5&COUNTIF(分数跟踪器!$C$4:C5,分数跟踪器!C5) -> 高级 Java 编程1
B35: 3 | C35: =分数跟踪器!C6&COUNTIF(分数跟踪器!$C$4:C6,分数跟踪器!C6) -> 西班牙语1
B36: 4 | C36: =分数跟踪器!C7&COUNTIF(分数跟踪器!$C$4:C7,分数跟踪器!C7) -> 理论物理1
B37: 5 | C37: =分数跟踪器!C8&COUNTIF(分数跟踪器!$C$4:C8,分数跟踪器!C8) -> 现代法语2
B38: 6 | C38: =分数跟踪器!C9&COUNTIF(分数跟踪器!$C$4:C9,分数跟踪器!C9) -> 现代法语3
B39: 7 | C39: =分数跟踪器!C10&COUNTIF(分数跟踪器!$C$4:C10,分数跟踪器!C10) -> 作文1
B40: 8 | C40: =分数跟踪器!C11&COUNTIF(分数跟踪器!$C$4:C11,分数跟踪器!C11) -> 数学 11
B41: 9 | C41: =分数跟踪器!C12&COUNTIF(分数跟踪器!$C$4:C12,分数跟踪器!C12) -> 数学 21
B42: 10 | C42: =分数跟踪器!C13&COUNTIF(分数跟踪器!$C$4:C14,分数跟踪器!C13) -> 数学 12
B43: 11 | C43: =分数跟踪器!C14&COUNTIF(分数跟踪器!$C$4:C14,分数跟踪器!C14) -> 数学 22
B44: 12 | C44: =分数跟踪器!C15&COUNTIF(分数跟踪器!$C$4:C15,分数跟踪器!C15) -> 0
B45: 13 | C45: =分数跟踪器!C16&COUNTIF(分数跟踪器!$C$4:C16,分数跟踪器!C16) -> 0
B46: 14 | C46: =分数跟踪器!C17&COUNTIF(分数跟踪器!$C$4:C17,分数跟踪器!C17) -> 0
B47: 15 | C47: =分数跟踪器!C18&COUNTIF(分数跟踪器!$C$4:C18,分数跟踪器!C18) -> 0
B48: 16 | C48: =分数跟踪器!C19&COUNTIF(分数跟踪器!$C$4:C19,分数跟踪器!C19) -> 0
B49: 17 | C49: =分数跟踪器!C20&COUNTIF(分数跟踪器!$C$4:C20,分数跟踪器!C20) -> 0
B50: 18 | C50: =分数跟踪器!C21&COUNTIF(分数跟踪器!$C$4:C21,分数跟踪器!C21) -> 0
B51: 19 | C51: =分数跟踪器!C22&COUNTIF(分数跟踪器!$C$4:C22,分数跟踪器!C22) -> 0
B52: 20 | C52: =分数跟踪器!C23&COUNTIF(分数跟踪器!$C$4:C23,分数跟踪器!C23) -> 0
B53: 21 | C53: =分数跟踪器!C24&COUNTIF(分数跟踪器!$C$4:C24,分数跟踪器!C24) -> 0
B54: 22 | C54: =分数跟踪器!C25&COUNTIF(分数跟踪器!$C$4:C25,分数跟踪器!C25) -> 0
B55: 23 | C55: =分数跟踪器!C26&COUNTIF(分数跟踪器!$C$4:C26,分数跟踪器!C26) -> 0
B56: 24 | C56: =分数跟踪器!C27&COUNTIF(分数跟踪器!$C$4:C27,分数跟踪器!C27) -> 0
B57: 25 | C57: =分数跟踪器!C28&COUNTIF(分数跟踪器!$C$4:C28,分数跟踪器!C28) -> 0
B58: 26 | C58: =分数跟踪器!C29&COUNTIF(分数跟踪器!$C$4:C29,分数跟踪器!C29) -> 0
B59: 27 | C59: =分数跟踪器!C30&COUNTIF(分数跟踪器!$C$4:C30,分数跟踪器!C30) -> 0
B60: 28 | C60: =分数跟踪器!C31&COUNTIF(分数跟踪器!$C$4:C31,分数跟踪器!C31) -> 0
B61: 29 | C61: =分数跟踪器!C32&COUNTIF(分数跟踪器!$C$4:C32,分数跟踪器!C32) -> 0
B62: 30 | C62: =分数跟踪器!C33&COUNTIF(分数跟踪器!$C$4:C33,分数跟踪器!C33) -> 0
B63: 31 | C63: =分数跟踪器!C34&COUNTIF(分数跟踪器!$C$4:C34,分数跟踪器!C34) -> 0
B64: 32 | C64: =分数跟踪器!C35&COUNTIF(分数跟踪器!$C$4:C35,分数跟踪器!C35) -> 0
B65: 33 | C65: =分数跟踪器!C36&COUNTIF(分数跟踪器!$C$4:C36,分数跟踪器!C36) -> 0
B66: 34 | C66: =分数跟踪器!C37&COUNTIF(分数跟踪器!$C$4:C37,分数跟踪器!C37) -> 0
B67: 35 | C67: =分数跟踪器!C38&COUNTIF(分数跟踪器!$C$4:C38,分数跟踪器!C38) -> 0
B68: 36 | C68: =分数跟踪器!C39&COUNTIF(分数跟踪器!$C$4:C39,分数跟踪器!C39) -> 0
B69: 37 | C69: =分数跟踪器!C40&COUNTIF(分数跟踪器!$C$4:C40,分数跟踪器!C40) -> 0
B70: 38 | C70: =分数跟踪器!C41&COUNTIF(分数跟踪器!$C$4:C41,分数跟踪器!C41) -> 0
B71: 39 | C71: =分数跟踪器!C42&COUNTIF(分数跟踪器!$C$4:C42,分数跟踪器!C42) -> 0
B72: 40 | C72: =分数跟踪器!C43&COUNTIF(分数跟踪器!$C$4:C43,分数跟踪器!C43) -> 0
B73: 41 | C73: =分数跟踪器!C44&COUNTIF(分数跟踪器!$C$4:C44,分数跟踪器!C44) -> 0
B74: 42 | C74: =分数跟踪器!C45&COUNTIF(分数跟踪器!$C$4:C45,分数跟踪器!C45) -> 0
B75: 43 | C75: =分数跟踪器!C46&COUNTIF(分数跟踪器!$C$4:C46,分数跟踪器!C46) -> 0
B76: 44 | C76: =分数跟踪器!C47&COUNTIF(分数跟踪器!$C$4:C47,分数跟踪器!C47) -> 0
B77: 45 | C77: =分数跟踪器!C48&COUNTIF(分数跟踪器!$C$4:C48,分数跟踪器!C48) -> 0
B78: 46 | C78: =分数跟踪器!C49&COUNTIF(分数跟踪器!$C$4:C49,分数跟踪器!C49) -> 0
B79: 47 | C79: =分数跟踪器!C50&COUNTIF(分数跟踪器!$C$4:C50,分数跟踪器!C50) -> 0
B80: 48 | C80: =分数跟踪器!C51&COUNTIF(分数跟踪器!$C$4:C51,分数跟踪器!C51) -> 0
B81: 49 | C81: =分数跟踪器!C52&COUNTIF(分数跟踪器!$C$4:C52,分数跟踪器!C52) -> 0
B82: 50 | C82: =分数跟踪器!C53&COUNTIF(分数跟踪器!$C$4:C53,分数跟踪器!C53) -> 0
B83: 51 | C83: =分数跟踪器!C54&COUNTIF(分数跟踪器!$C$4:C54,分数跟踪器!C54) -> 0
B84: 52 | C84: =分数跟踪器!C55&COUNTIF(分数跟踪器!$C$4:C55,分数跟踪器!C55) -> 0
B85: 53 | C85: =分数跟踪器!C56&COUNTIF(分数跟踪器!$C$4:C56,分数跟踪器!C56) -> 0
B86: 54 | C86: =分数跟踪器!C57&COUNTIF(分数跟踪器!$C$4:C57,分数跟踪器!C57) -> 0
B87: 55 | C87: =分数跟踪器!C58&COUNTIF(分数跟踪器!$C$4:C58,分数跟踪器!C58) -> 0
B88: 56 | C88: =分数跟踪器!C59&COUNTIF(分数跟踪器!$C$4:C59,分数跟踪器!C59) -> 0
B89: 57 | C89: =分数跟踪器!C60&COUNTIF(分数跟踪器!$C$4:C60,分数跟踪器!C60) -> 0
B90: 58 | C90: =分数跟踪器!C61&COUNTIF(分数跟踪器!$C$4:C61,分数跟踪器!C61) -> 0
B91: 59 | C91: =分数跟踪器!C62&COUNTIF(分数跟踪器!$C$4:C62,分数跟踪器!C62) -> 0
B92: 60 | C92: =分数跟踪器!C63&COUNTIF(分数跟踪器!$C$4:C63,分数跟踪器!C63) -> 0
B93: 61 | C93: =分数跟踪器!C64&COUNTIF(分数跟踪器!$C$4:C64,分数跟踪器!C64) -> 0
B94: 62 | C94: =分数跟踪器!C65&COUNTIF(分数跟踪器!$C$4:C65,分数跟踪器!C65) -> 0
B95: 63 | C95: =分数跟踪器!C66&COUNTIF(分数跟踪器!$C$4:C66,分数跟踪器!C66) -> 0
B96: 64 | C96: =分数跟踪器!C67&COUNTIF(分数跟踪器!$C$4:C67,分数跟踪器!C67) -> 0
B97: 65 | C97: =分数跟踪器!C68&COUNTIF(分数跟踪器!$C$4:C68,分数跟踪器!C68) -> 0
B98: 66 | C98: =分数跟踪器!C69&COUNTIF(分数跟踪器!$C$4:C69,分数跟踪器!C69) -> 0
B99: 67 | C99: =分数跟踪器!C70&COUNTIF(分数跟踪器!$C$4:C70,分数跟踪器!C70) -> 0
B100: 68 | C100: =分数跟踪器!C71&COUNTIF(分数跟踪器!$C$4:C71,分数跟踪器!C71) -> 0
B101: 69 | C101: =分数跟踪器!C72&COUNTIF(分数跟踪器!$C$4:C72,分数跟踪器!C72) -> 0
B102: 70 | C102: =分数跟踪器!C73&COUNTIF(分数跟踪器!$C$4:C73,分数跟踪器!C73) -> 0
B103: 71 | C103: =分数跟踪器!C74&COUNTIF(分数跟踪器!$C$4:C74,分数跟踪器!C74) -> 0
B104: 72 | C104: =分数跟踪器!C75&COUNTIF(分数跟踪器!$C$4:C75,分数跟踪器!C75) -> 0
B105: 73 | C105: =分数跟踪器!C76&COUNTIF(分数跟踪器!$C$4:C76,分数跟踪器!C76) -> 0
B106: 74 | C106: =分数跟踪器!C77&COUNTIF(分数跟踪器!$C$4:C77,分数跟踪器!C77) -> 0
B107: 75 | C107: =分数跟踪器!C78&COUNTIF(分数跟踪器!$C$4:C78,分数跟踪器!C78) -> 0
B108: 76 | C108: =分数跟踪器!C79&COUNTIF(分数跟踪器!$C$4:C79,分数跟踪器!C79) -> 0
B109: 77 | C109: =分数跟踪器!C80&COUNTIF(分数跟踪器!$C$4:C80,分数跟踪器!C80) -> 0
B110: 78 | C110: =分数跟踪器!C81&COUNTIF(分数跟踪器!$C$4:C81,分数跟踪器!C81) -> 0
B111: 79 | C111: =分数跟踪器!C82&COUNTIF(分数跟踪器!$C$4:C82,分数跟踪器!C82) -> 0
B112: 80 | C112: =分数跟踪器!C83&COUNTIF(分数跟踪器!$C$4:C83,分数跟踪器!C83) -> 0
B113: 81 | C113: =分数跟踪器!C84&COUNTIF(分数跟踪器!$C$4:C84,分数跟踪器!C84) -> 0
B114: 82 | C114: =分数跟踪器!C85&COUNTIF(分数跟踪器!$C$4:C85,分数跟踪器!C85) -> 0
B115: 83 | C115: =分数跟踪器!C86&COUNTIF(分数跟踪器!$C$4:C86,分数跟踪器!C86) -> 0
B116: 84 | C116: =分数跟踪器!C87&COUNTIF(分数跟踪器!$C$4:C87,分数跟踪器!C87) -> 0
B117: 85 | C117: =分数跟踪器!C88&COUNTIF(分数跟踪器!$C$4:C88,分数跟踪器!C88) -> 0
B118: 86 | C118: =分数跟踪器!C89&COUNTIF(分数跟踪器!$C$4:C89,分数跟踪器!C89) -> 0
B119: 87 | C119: =分数跟踪器!C90&COUNTIF(分数跟踪器!$C$4:C90,分数跟踪器!C90) -> 0
B120: 88 | C120: =分数跟踪器!C91&COUNTIF(分数跟踪器!$C$4:C91,分数跟踪器!C91) -> 0
B121: 89 | C121: =分数跟踪器!C92&COUNTIF(分数跟踪器!$C$4:C92,分数跟踪器!C92) -> 0
B122: 90 | C122: =分数跟踪器!C93&COUNTIF(分数跟踪器!$C$4:C93,分数跟踪器!C93) -> 0
B123: 91 | C123: =分数跟踪器!C94&COUNTIF(分数跟踪器!$C$4:C94,分数跟踪器!C94) -> 0
B124: 92 | C124: =分数跟踪器!C95&COUNTIF(分数跟踪器!$C$4:C95,分数跟踪器!C95) -> 0
B125: 93 | C125: =分数跟踪器!C96&COUNTIF(分数跟踪器!$C$4:C96,分数跟踪器!C96) -> 0
B126: 94 | C126: =分数跟踪器!C97&COUNTIF(分数跟踪器!$C$4:C97,分数跟踪器!C97) -> 0
B127: 95 | C127: =分数跟踪器!C98&COUNTIF(分数跟踪器!$C$4:C98,分数跟踪器!C98) -> 0
B128: 96 | C128: =分数跟踪器!C99&COUNTIF(分数跟踪器!$C$4:C99,分数跟踪器!C99) -> 0
B129: 97 | C129: =分数跟踪器!C100&COUNTIF(分数跟踪器!$C$4:C100,分数跟踪器!C100) -> 0
B130: 98 | C130: =分数跟踪器!C101&COUNTIF(分数跟踪器!$C$4:C101,分数跟踪器!C101) -> 0
B131: 99 | C131: =分数跟踪器!C102&COUNTIF(分数跟踪器!$C$4:C102,分数跟踪器!C102) -> 0
B132: 100 | C132: =分数跟踪器!C103&COUNTIF(分数跟踪器!$C$4:C103,分数跟踪器!C103) -> 0
B133: 101 | C133: =分数跟踪器!C104&COUNTIF(分数跟踪器!$C$4:C104,分数跟踪器!C104) -> 0
B134: 102 | C134: =分数跟踪器!C105&COUNTIF(分数跟踪器!$C$4:C105,分数跟踪器!C105) -> 0
B135: 103 | C135: =分数跟踪器!C106&COUNTIF(分数跟踪器!$C$4:C106,分数跟踪器!C106) -> 0
B136: 104 | C136: =分数跟踪器!C107&COUNTIF(分数跟踪器!$C$4:C107,分数跟踪器!C107) -> 0
B137: 105 | C137: =分数跟踪器!C108&COUNTIF(分数跟踪器!$C$4:C108,分数跟踪器!C108) -> 0
B138: 106 | C138: =分数跟踪器!C109&COUNTIF(分数跟踪器!$C$4:C109,分数跟踪器!C109) -> 0
B139: 107 | C139: =分数跟踪器!C110&COUNTIF(分数跟踪器!$C$4:C110,分数跟踪器!C110) -> 0
B140: 108 | C140: =分数跟踪器!C111&COUNTIF(分数跟踪器!$C$4:C111,分数跟踪器!C111) -> 0
B141: 109 | C141: =分数跟踪器!C112&COUNTIF(分数跟踪器!$C$4:C112,分数跟踪器!C112) -> 0
B142: 110 | C142: =分数跟踪器!C113&COUNTIF(分数跟踪器!$C$4:C113,分数跟踪器!C113) -> 0
B143: 111 | C143: =分数跟踪器!C114&COUNTIF(分数跟踪器!$C$4:C114,分数跟踪器!C114) -> 0
B144: 112 | C144: =分数跟踪器!C115&COUNTIF(分数跟踪器!$C$4:C115,分数跟踪器!C115) -> 0
B145: 113 | C145: =分数跟踪器!C116&COUNTIF(分数跟踪器!$C$4:C116,分数跟踪器!C116) -> 0
B146: 114 | C146: =分数跟踪器!C117&COUNTIF(分数跟踪器!$C$4:C117,分数跟踪器!C117) -> 0
B147: 115 | C147: =分数跟踪器!C118&COUNTIF(分数跟踪器!$C$4:C118,分数跟踪器!C118) -> 0
B148: 116 | C148: =分数跟踪器!C119&COUNTIF(分数跟踪器!$C$4:C119,分数跟踪器!C119) -> 0
B149: 117 | C149: =分数跟踪器!C120&COUNTIF(分数跟踪器!$C$4:C120,分数跟踪器!C120) -> 0
B150: 118 | C150: =分数跟踪器!C121&COUNTIF(分数跟踪器!$C$4:C121,分数跟踪器!C121) -> 0
B151: 119 | C151: =分数跟踪器!C122&COUNTIF(分数跟踪器!$C$4:C122,分数跟踪器!C122) -> 0
B152: 120 | C152: =分数跟踪器!C123&COUNTIF(分数跟踪器!$C$4:C123,分数跟踪器!C123) -> 0
B153: 121 | C153: =分数跟踪器!C124&COUNTIF(分数跟踪器!$C$4:C124,分数跟踪器!C124) -> 0
B154: 122 | C154: =分数跟踪器!C125&COUNTIF(分数跟踪器!$C$4:C125,分数跟踪器!C125) -> 0
B155: 123 | C155: =分数跟踪器!C126&COUNTIF(分数跟踪器!$C$4:C126,分数跟踪器!C126) -> 0
B156: 124 | C156: =分数跟踪器!C127&COUNTIF(分数跟踪器!$C$4:C127,分数跟踪器!C127) -> 0
B157: 125 | C157: =分数跟踪器!C128&COUNTIF(分数跟踪器!$C$4:C128,分数跟踪器!C128) -> 0
B158: 126 | C158: =分数跟踪器!C129&COUNTIF(分数跟踪器!$C$4:C129,分数跟踪器!C129) -> 0
B159: 127 | C159: =分数跟踪器!C130&COUNTIF(分数跟踪器!$C$4:C130,分数跟踪器!C130) -> 0
B160: 128 | C160: =分数跟踪器!C131&COUNTIF(分数跟踪器!$C$4:C131,分数跟踪器!C131) -> 0
B161: 129 | C161: =分数跟踪器!C132&COUNTIF(分数跟踪器!$C$4:C132,分数跟踪器!C132) -> 0
B162: 130 | C162: =分数跟踪器!C133&COUNTIF(分数跟踪器!$C$4:C133,分数跟踪器!C133) -> 0
B163: 131 | C163: =分数跟踪器!C134&COUNTIF(分数跟踪器!$C$4:C134,分数跟踪器!C134) -> 0
B164: 132 | C164: =分数跟踪器!C135&COUNTIF(分数跟踪器!$C$4:C135,分数跟踪器!C135) -> 0
B165: 133 | C165: =分数跟踪器!C136&COUNTIF(分数跟踪器!$C$4:C136,分数跟踪器!C136) -> 0
B166: 134 | C166: =分数跟踪器!C137&COUNTIF(分数跟踪器!$C$4:C137,分数跟踪器!C137) -> 0
B167: 135 | C167: =分数跟踪器!C138&COUNTIF(分数跟踪器!$C$4:C138,分数跟踪器!C138) -> 0
B168: 136 | C168: =分数跟踪器!C139&COUNTIF(分数跟踪器!$C$4:C139,分数跟踪器!C139) -> 0
B169: 137 | C169: =分数跟踪器!C140&COUNTIF(分数跟踪器!$C$4:C140,分数跟踪器!C140) -> 0
B170: 138 | C170: =分数跟踪器!C141&COUNTIF(分数跟踪器!$C$4:C141,分数跟踪器!C141) -> 0
B171: 139 | C171: =分数跟踪器!C142&COUNTIF(分数跟踪器!$C$4:C142,分数跟踪器!C142) -> 0
B172: 140 | C172: =分数跟踪器!C143&COUNTIF(分数跟踪器!$C$4:C143,分数跟踪器!C143) -> 0
B173: 141 | C173: =分数跟踪器!C144&COUNTIF(分数跟踪器!$C$4:C144,分数跟踪器!C144) -> 0
B174: 142 | C174: =分数跟踪器!C145&COUNTIF(分数跟踪器!$C$4:C145,分数跟踪器!C145) -> 0
B175: 143 | C175: =分数跟踪器!C146&COUNTIF(分数跟踪器!$C$4:C146,分数跟踪器!C146) -> 0
B176: 144 | C176: =分数跟踪器!C147&COUNTIF(分数跟踪器!$C$4:C147,分数跟踪器!C147) -> 0
B177: 145 | C177: =分数跟踪器!C148&COUNTIF(分数跟踪器!$C$4:C148,分数跟踪器!C148) -> 0
B178: 146 | C178: =分数跟踪器!C149&COUNTIF(分数跟踪器!$C$4:C149,分数跟踪器!C149) -> 0
B179: 147 | C179: =分数跟踪器!C150&COUNTIF(分数跟踪器!$C$4:C150,分数跟踪器!C150) -> 0
B180: 148 | C180: =分数跟踪器!C151&COUNTIF(分数跟踪器!$C$4:C151,分数跟踪器!C151) -> 0
B181: 149 | C181: =分数跟踪器!C152&COUNTIF(分数跟踪器!$C$4:C152,分数跟踪器!C152) -> 0
B182: 150 | C182: =分数跟踪器!C153&COUNTIF(分数跟踪器!$C$4:C153,分数跟踪器!C153) -> 0
B183: 151 | C183: =分数跟踪器!C154&COUNTIF(分数跟踪器!$C$4:C154,分数跟踪器!C154) -> 0
B184: 152 | C184: =分数跟踪器!C155&COUNTIF(分数跟踪器!$C$4:C155,分数跟踪器!C155) -> 0
B185: 153 | C185: =分数跟踪器!C156&COUNTIF(分数跟踪器!$C$4:C156,分数跟踪器!C156) -> 0
B186: 154 | C186: =分数跟踪器!C157&COUNTIF(分数跟踪器!$C$4:C157,分数跟踪器!C157) -> 0
B187: 155 | C187: =分数跟踪器!C158&COUNTIF(分数跟踪器!$C$4:C158,分数跟踪器!C158) -> 0
B188: 156 | C188: =分数跟踪器!C159&COUNTIF(分数跟踪器!$C$4:C159,分数跟踪器!C159) -> 0
B189: 157 | C189: =分数跟踪器!C160&COUNTIF(分数跟踪器!$C$4:C160,分数跟踪器!C160) -> 0
B190: 158 | C190: =分数跟踪器!C161&COUNTIF(分数跟踪器!$C$4:C161,分数跟踪器!C161) -> 0
B191: 159 | C191: =分数跟踪器!C162&COUNTIF(分数跟踪器!$C$4:C162,分数跟踪器!C162) -> 0
B192: 160 | C192: =分数跟踪器!C163&COUNTIF(分数跟踪器!$C$4:C163,分数跟踪器!C163) -> 0
B193: 161 | C193: =分数跟踪器!C164&COUNTIF(分数跟踪器!$C$4:C164,分数跟踪器!C164) -> 0
B194: 162 | C194: =分数跟踪器!C165&COUNTIF(分数跟踪器!$C$4:C165,分数跟踪器!C165) -> 0
B195: 163 | C195: =分数跟踪器!C166&COUNTIF(分数跟踪器!$C$4:C166,分数跟踪器!C166) -> 0
B196: 164 | C196: =分数跟踪器!C167&COUNTIF(分数跟踪器!$C$4:C167,分数跟踪器!C167) -> 0
B197: 165 | C197: =分数跟踪器!C168&COUNTIF(分数跟踪器!$C$4:C168,分数跟踪器!C168) -> 0
B198: 166 | C198: =分数跟踪器!C169&COUNTIF(分数跟踪器!$C$4:C169,分数跟踪器!C169) -> 0
B199: 167 | C199: =分数跟踪器!C170&COUNTIF(分数跟踪器!$C$4:C170,分数跟踪器!C170) -> 0
B200: 168 | C200: =分数跟踪器!C171&COUNTIF(分数跟踪器!$C$4:C171,分数跟踪器!C171) -> 0
B201: 169 | C201: =分数跟踪器!C172&COUNTIF(分数跟踪器!$C$4:C172,分数跟踪器!C172) -> 0
B202: 170 | C202: =分数跟踪器!C173&COUNTIF(分数跟踪器!$C$4:C173,分数跟踪器!C173) -> 0
B203: 171 | C203: =分数跟踪器!C174&COUNTIF(分数跟踪器!$C$4:C174,分数跟踪器!C174) -> 0
... 454 more rows
